[Event "98th Caplin Hastings Masters 2024-25"]
[Site "Hastings"]
[Date "2025.01.02"]
[Round "8.12"]
[White "Saunders, Aron"]
[Black "Boyer, Mahel"]
[Result "1/2-1/2"]
[ECO "C55"]
[WhiteElo "2106"]
[BlackElo "2526"]
[Annotator "TA"]
[PlyCount "162"]
[EventDate "2024.12.23"]
[EventType "swiss"]
[EventCountry "ENG"]
[SourceTitle "playchess.com"]
[Source "ChessBase"]
[SourceQuality "1"]
[TimeControl "5400+30"]

{[%evp 29,162,45,54,48,104,84,104,93,124,113,103,105,106,115,98,84,81,76,80,58,43,47,44,27,78,87,88,95,102,77,77,46,75,73,131,111,77,27,90,78,80,91,127,99,133,139,144,84,90,85,105,10,9,8,11,0,0,0,0,0,0,0,0,0,0,0,0,0,0,0,0,0,0,0,0,0,0,0,0,0,0,0,0,0,0,0,0,0,0,0,0,0,0,0,0,0,0,0,0,0,0,0,0,0,0,0,0,0,0,0,0,0,0,0,0,0,0,0,0,0,0,0,0,0,8,0,0,0,8,0,0,0,11,0,0]} 1. e4 {[%emt 0:00:02]} Nc6 {[%emt 0:08:03]} 2. Nf3 {[%emt 0:00:13]} e5 {[%emt 0:00:08]} 3. Bc4 {[%emt 0:00:05]} d6 {[%emt 0:00:06]} 4. O-O {[%emt 0:01:08]} Be7 {[%emt 0:02:53]} 5. c3 {[%emt 0:01:47]} Nf6 {[%emt 0:03:24]} 6. d3 {[%emt 0:00:52]} O-O {[%emt 0:00:18]} 7. a4 {[%emt 0:02:46]} b6 {[%emt 0:06:52]} 8. Nbd2 {[%emt 0:03:00]} Bb7 {[%emt 0:01:29]} 9. Re1 {[%emt 0:02:10]} Qd7 {[%emt 0:00:24]} 10. Nf1 {[%emt 0:02:09]} Rae8 {[%emt 0:00:14]} 11. Ne3 {[%emt 0:03:33]} Bd8 {[%emt 0:03:32]} 12. b4 {[%emt 0:05:32]} Ne7 {[%emt 0:01:45]} 13. Qb3 {[%emt 0:05:19]} c6 {[%emt 0:17:07]} 14. b5 {[%emt 0:05:07]} Bc7 {[%emt 0:00:59]} 15. bxc6 {[%emt 0:06:52]} Bxc6 {[%emt 0:00:24]} 16. Bb5 {[%emt 0:02:11]} Nh5 {[%emt 0:14:48]} ({Black should play} 16... a6 $14 17. Bxc6 (17. Bxa6 Ra8 $14) 17... Nxc6) 17. d4 {[%emt 0:05:15]} a6 {[%emt 0:06:46]} 18. Bxc6 {[%emt 0:02:27]} Qxc6 {[%emt 0:00:06]} 19. dxe5 {[%emt 0:04:07]} dxe5 {[%emt 0:00:33]} 20. Ba3 {[%emt 0:00:59]} Bd6 {[%emt 0:08:55]} 21. Bxd6 {[%emt 0:04:40]} Qxd6 {[%emt 0:22:14]} 22. Rad1 {[%emt 0:00:04]} Qc5 {[%emt 0:00:00]} 23. Nc4 {[%emt 0:01:56]} Ng6 {[%emt 0:00:00]} 24. Qb4 {[%emt 0:08:54]} Qxb4 {[%emt 0:00:00]} 25. cxb4 {[%emt 0:00:06]} Re6 {[%emt 0:00:00]} 26. Rd7 {[%emt 0:03:10]} Rc8 {[%emt 0:00:00]} (26... b5 $11 27. axb5 axb5) 27. Nd6 $16 {[%emt 0:02:23]} Nf6 {[%emt 0:00:00]} 28. Nxc8 {[%emt 0:02:03]} (28. Rxf7 $2 {is the wrong capture.} Rxd6 29. Ra7 Nf4 30. Nxe5 Re8 $19) 28... Nxd7 {[%emt 0:00:00]} 29. Rc1 {[%emt 0:02:13]} h6 {[%emt 0:00:00]} 30. g3 {[%emt 0:02:40]} Nf6 {[%emt 0:00:00]} 31. Nd2 {[%emt 0:00:09]} Ne7 {[%emt 0:00:00]} (31... b5 $142) 32. f3 {[%emt 0:04:01]} Kf8 {[%emt 0:00:38]} 33. Kf2 {[%emt 0:01:48]} (33. Nxe7 $16 Kxe7 34. Rc7+ Nd7 35. Nc4) 33... Nc6 {[%emt 0:01:02]} (33... Ne8 $11 {keeps the balance.}) 34. Nxb6 $16 {[%emt 0:02:34]} Nxb4 {[%emt 0:00:10]} 35. Rc8+ {[%emt 0:00:03]} Re8 {[%emt 0:03:22] [#]} 36. Rc7 $1 {[%emt 0:02:01]} Re7 {[%emt 0:01:47]} 37. Rc4 {[%emt 0:01:51]} a5 {[%emt 0:00:12]} 38. Rc8+ {[%emt 0:00:36]} (38. Ke2 $142) 38... Re8 $16 {[%emt 0:00:34]} 39. Rxe8+ {[%emt 0:00:19]} Kxe8 {[%emt 0:00:06]} 40. Nbc4 {[%emt 0:00:11]} (40. Ke2 $16) 40... Nd7 $1 $11 {[%emt 0:00:43]} 41. Nb3 {[%emt 0:00:49]} f6 $1 {[%emt 0:00:55]} 42. Ncxa5 {[%emt 0:00:49]} Nd3+ $1 {[%emt 0:00:20]} 43. Ke3 {[%emt 0:00:34]} Nb2 {[%emt 0:00:06]} 44. Nc6 {[%emt 0:00:49]} Nxa4 {[%emt 0:00:08]} 45. Nd2 {[%emt 0:00:47]} Ndb6 {[%emt 0:00:50]} 46. Na5 {[%emt 0:00:52]} Nb2 {[%emt 0:00:28]} 47. Nab3 {[%emt 0:00:48]} Kd7 {[%emt 0:00:23]} 48. Nc5+ {[%emt 0:00:21]} Kd6 {[%emt 0:00:10]} 49. Ncb3 {[%emt 0:01:19]} N6a4 {[%emt 0:00:22]} 50. Nb1 {[%emt 0:00:57]} Kc6 {[%emt 0:01:26]} 51. Na3 {[%emt 0:00:04]} Nb6 {[%emt 0:00:40]} 52. Kd2 {[%emt 0:00:45]} N2a4 {[%emt 0:00:18]} 53. Kd3 {[%emt 0:00:14]} g6 {[%emt 0:00:19]} 54. Ke3 {[%emt 0:01:12]} Nb2 {[%emt 0:00:24]} 55. g4 {[%emt 0:00:43]} Nd1+ {[%emt 0:01:02]} 56. Ke2 {[%emt 0:00:15]} Nc3+ {[%emt 0:00:05]} 57. Kd3 {[%emt 0:00:12]} Na2 {[%emt 0:00:18]} 58. Ke3 {[%emt 0:00:23]} Nb4 {[%emt 0:00:07]} 59. Na5+ {[%emt 0:00:21]} Kc5 {[%emt 0:00:05]} 60. Nb3+ {[%emt 0:00:07]} Kd6 {[%emt 0:00:04]} 61. Nb5+ {[%emt 0:00:09]} Kc6 {[%emt 0:00:09]} 62. Na7+ {[%emt 0:00:57]} Kd7 {[%emt 0:00:10]} 63. Nb5 {[%emt 0:00:13]} Nc4+ {[%emt 0:00:05]} 64. Ke2 {[%emt 0:00:09]} Kc6 {[%emt 0:00:21]} 65. Nc3 {[%emt 0:00:06]} Kd6 {[%emt 0:00:32]} 66. Nb5+ {[%emt 0:00:06]} Ke7 {[%emt 0:00:10]} 67. Nc5 {[%emt 0:00:16]} Nc6 {[%emt 0:00:41]} 68. Kd3 {[%emt 0:00:29]} Nb6 {[%emt 0:00:05]} 69. Kc3 {[%emt 0:00:47]} h5 {[%emt 0:00:29]} 70. gxh5 {[%emt 0:01:24]} gxh5 {[%emt 0:00:01]} 71. Kd3 {[%emt 0:00:15]} Nd8 {[%emt 0:00:22]} 72. Ke3 {[%emt 0:00:34]} Nc4+ {[%emt 0:00:27]} 73. Kd3 {[%emt 0:00:20]} Nd6 {[%emt 0:00:18]} 74. Nc3 {[%emt 0:00:10]} Nc6 {[%emt 0:00:36]} 75. Nd5+ {[%emt 0:00:10]} Kf7 {[%emt 0:00:02]} 76. f4 {[%emt 0:00:32]} Kg6 {[%emt 0:00:30]} 77. Ke3 {[%emt 0:00:44]} Nc4+ {[%emt 0:00:37]} 78. Kd3 {[%emt 0:00:08]} Nd6 {[%emt 0:00:41]} 79. Ke3 {[%emt 0:00:04]} Nc4+ {[%emt 0:01:13]} 80. Kd3 {[%emt 0:00:04]} Nd6 {[%emt 0:01:05]} 81. Ke3 {[%emt 0:00:03]} Nc4+ {[%emt 0:01:32]} 1/2-1/2

[Event "98th Caplin Hastings Masters 2024-25"]
[Site "Hastings"]
[Date "2025.01.02"]
[Round "8.13"]
[White "Siva Mahadevan"]
[Black "Cheng, Louis"]
[Result "1-0"]
[ECO "A07"]
[WhiteElo "2349"]
[BlackElo "2087"]
[Annotator "TA"]
[PlyCount "139"]
[EventDate "2024.12.23"]
[EventType "swiss"]
[EventCountry "ENG"]
[SourceTitle "playchess.com"]
[Source "ChessBase"]
[SourceQuality "1"]
[TimeControl "5400+30"]

{[%evp 73,139,174,174,174,172,149,124,0,167,0,117,91,168,164,160,147,143,139,148,142,137,146,132,142,143,143,258,267,245,253,251,256,261,247,252,179,326,308,269,189,165,0,0,0,0,0,200,204,212,202,216,215,215,199,224,224,244,185,218,170,246,179,246,246,29997,29998,29998,29999]} 1. Nf3 {[%emt 0:00:14]} Nf6 {[%emt 0:00:10]} 2. g3 {[%emt 0:00:11]} d5 {[%emt 0:00:07]} 3. Bg2 {[%emt 0:00:07]} g6 {[%emt 0:00:07]} 4. O-O {[%emt 0:00:13]} Bg7 {[%emt 0:00:08]} 5. d3 {[%emt 0:00:14]} O-O {[%emt 0:01:23]} 6. Nbd2 {[%emt 0:00:08]} d4 {[%emt 0:00:11]} 7. e4 {[%emt 0:01:46]} dxe3 {[%emt 0:00:31]} 8. fxe3 {[%emt 0:00:07]} c5 {[%emt 0:03:30]} 9. Qe2 {[%emt 0:04:28]} Nc6 {[%emt 0:03:20]} 10. Nc4 {[%emt 0:02:47]} Qc7 {[%emt 0:05:28]} 11. e4 {[%emt 0:02:11]} e5 {[%emt 0:08:12]} 12. Bg5 {[%emt 0:04:30]} Bg4 {[%emt 0:10:27]} 13. c3 {[%emt 0:07:55]} h6 {[%emt 0:02:26]} 14. Bxf6 {[%emt 0:01:10]} Bxf6 {[%emt 0:00:07]} 15. Ne3 {[%emt 0:01:26]} Be6 {[%emt 0:01:21]} 16. Nd5 {[%emt 0:09:30]} Bxd5 {[%emt 0:00:32]} 17. exd5 {[%emt 0:00:04]} Ne7 {[%emt 0:00:20]} 18. Nd2 {[%emt 0:01:57]} Bg7 {[%emt 0:00:32]} 19. Nc4 {[%emt 0:01:06]} Nc8 {[%emt 0:04:29]} 20. g4 {[%emt 0:12:35]} Nd6 {[%emt 0:02:32]} 21. Be4 {[%emt 0:01:24]} Rad8 {[%emt 0:03:14]} 22. Rf3 {[%emt 0:03:16]} Qe7 {[%emt 0:02:46]} 23. Raf1 {[%emt 0:01:39]} Nxc4 {[%emt 0:03:42]} 24. dxc4 {[%emt 0:00:02]} Qh4 {[%emt 0:02:00]} 25. Rg3 {[%emt 0:05:59]} Qg5 {[%emt 0:01:41]} 26. Qf2 {[%emt 0:03:39]} Qf4 {[%emt 0:02:53]} 27. Qg2 {[%emt 0:09:08]} Qg5 {[%emt 0:00:21]} 28. h4 {[%emt 0:03:30]} Qxh4 {[%emt 0:03:00]} 29. g5 {[%emt 0:00:06]} h5 {[%emt 0:00:12]} 30. Bd3 {[%emt 0:06:48]} b5 {[%emt 0:03:41]} 31. Be2 {[%emt 0:01:37]} f5 {[%emt 0:06:40]} 32. gxf6 {[%emt 0:04:59]} Rxf6 {[%emt 0:00:09]} 33. Rxg6 {[%emt 0:01:08]} Rxg6 {[%emt 0:00:10]} 34. Qxg6 {[%emt 0:00:03]} Rf8 {[%emt 0:00:42]} 35. Qe6+ {[%emt 0:05:38]} Kh7 {[%emt 0:00:34]} 36. Bd3+ {[%emt 0:00:27]} Kh8 {[%emt 0:00:37]} 37. Rxf8+ {[%emt 0:00:35]} (37. cxb5 $2 Bf6 (37... Qg3+ 38. Kh1 $15) 38. Rxf6 Qg5+ (38... Qxf6 39. Qxf6+ Rxf6 40. a4 $17) (38... Rxf6 39. Qxe5 Qf2+ 40. Kh1 $17) 39. Kh1 Qxf6 (39... Rxf6 40. Qe8+ Kg7 41. Qe7+ Kg8 42. Qd8+ Kf7 43. Qd7+ Kf8 44. Qd8+ Kf7 45. Qc7+ Kf8 46. Qd8+ Kf7 $11) 40. Qxf6+ Rxf6 $17) 37... Bxf8 {[%emt 0:00:03]} 38. Qxe5+ {[%emt 0:00:12]} (38. cxb5 Qg3+ 39. Kh1 Qxd3 $15) 38... Kg8 {[%emt 0:00:10]} 39. Qe6+ {[%emt 0:01:38]} Kh8 {[%emt 0:00:12]} 40. Qe5+ {[%emt 0:00:06]} (40. cxb5 Qg3+ 41. Kh1 Qxd3 42. Qe5+ Kh7 (42... Kg8 43. Qe6+ Kh8 44. Qe5+ Kh7 45. Qxh5+ Kg8 46. Qg4+ Kh8 47. Qh5+ Qh7 48. Qxh7+ Kxh7 49. Kg2 $19) 43. Qxh5+ Kg8 $11) 40... Kg8 {[%emt 0:00:12]} 41. Qe6+ {[%emt 0:00:18]} ({White should try} 41. cxb5 $18 Qg4+ 42. Kf2) 41... Kh8 $16 {[%emt 0:00:09]} 42. Qf5 {[%emt 0:01:05]} (42. cxb5 Qg3+ 43. Kh1 Qxd3 44. Qe5+ Kh7 (44... Kg8 45. Qe6+ Kg7 46. Qe5+ Kh7 47. Qxh5+ Bh6 48. Qf7+ Kh8 49. Qe8+ Kg7 50. Qe5+ Kg6 51. Kg2 $15) 45. Qxh5+ Bh6 46. Qf7+ Kh8 47. Qe8+ Kg7 48. Qe5+ Kg6 $15) 42... Qe1+ {[%emt 0:00:29]} (42... Qg3+ $16 43. Kf1 Kg7) 43. Kg2 $18 {[%emt 0:00:22]} Qd2+ {[%emt 0:00:10]} 44. Kh3 {[%emt 0:00:36]} Qe3+ {[%emt 0:00:06]} 45. Kh4 {[%emt 0:00:41]} Qe1+ {[%emt 0:00:35]} 46. Kxh5 {[%emt 0:00:46]} Qh1+ {[%emt 0:00:24]} 47. Kg4 {[%emt 0:00:55]} (47. Kg6 $2 Qh6+ 48. Kf7 Qg7+ 49. Ke8 Qe7#) 47... Qg2+ {[%emt 0:00:26]} 48. Kf4 {[%emt 0:01:28]} Qf2+ {[%emt 0:01:25]} 49. Ke4 {[%emt 0:00:37]} Qe1+ {[%emt 0:00:17]} (49... Qg2+ $16 50. Qf3 (50. Ke5 Qh2+ 51. Ke4 Qg2+ 52. Qf3 Qxf3+ 53. Kxf3 bxc4 $16) 50... Qxf3+ 51. Kxf3 bxc4) 50. Kf3 $18 {[%emt 0:00:06]} Qd1+ {[%emt 0:00:48]} 51. Kf2 {[%emt 0:00:12]} Qd2+ {[%emt 0:00:23] [#]} 52. Be2 $1 {[%emt 0:00:10]} Bh6 {[%emt 0:00:44]} 53. Qe5+ {[%emt 0:00:06]} Kg8 {[%emt 0:00:06]} 54. Qb8+ {[%emt 0:01:20]} Kh7 {[%emt 0:01:02]} (54... Bf8 $142 55. cxb5 (55. Qxa7 Qf4+ 56. Ke1 Qc1+ 57. Kf2 Qf4+ 58. Bf3 Qd2+ 59. Kf1 Qc1+ 60. Kf2 Qxb2+ 61. Be2 Qxc3 $11) 55... Qxb2) 55. Qxa7+ $18 {[%emt 0:00:13]} Bg7 {[%emt 0:00:18]} 56. Qxc5 {[%emt 0:02:53]} (56. cxb5 Qf4+ 57. Ke1 Qc1+ 58. Bd1 Qxb2 (58... Qe3+ $2 59. Kf1 $16) 59. Qxc5 Bxc3+ 60. Kf1 Qc1 $18) 56... Qf4+ {[%emt 0:00:06]} 57. Kg2 $2 {[%emt 0:00:50]} (57. Ke1 $18 {Threatens to win with Bd3+.} Qc1+ 58. Bd1) 57... Qg5+ $11 {[%emt 0:00:06]} 58. Kf1 $2 {[%emt 0:00:21]} (58. Kf3 $11 Qf5+ 59. Kg2 Qg6+ 60. Kf2 Qf5+ 61. Ke1 (61. Bf3 Qc2+ 62. Ke1 Qb1+ 63. Kf2 Qxb2+ 64. Kg3 Qxc3 $11) 61... Qb1+ 62. Bd1 (62. Kf2 Qf5+ 63. Ke1 Qb1+ 64. Bd1 Qe4+ 65. Kf2 Qb1 $16)) 58... Qc1+ $18 {[%emt 0:00:21]} 59. Kf2 {[%emt 0:00:04]} Qf4+ {[%emt 0:00:05]} 60. Ke1 {[%emt 0:00:23]} Qc1+ {[%emt 0:00:39]} 61. Bd1 {[%emt 0:00:04]} Qxb2 {[%emt 0:00:09]} 62. cxb5 {[%emt 0:00:17]} ({Weaker is} 62. Qxb5 Qxc3+ 63. Kf1 Qf6+ 64. Ke2 Qe5+ 65. Kf2 Qh2+ 66. Kf1 (66. Ke3 Qg1+ 67. Ke2 Qg2+ 68. Ke3 Qg5+ 69. Kd3 Qg3+ 70. Kc2 Qc3+ 71. Kb1 Qa1+ 72. Kc2 Qc3+ 73. Kb1 Qa1+ 74. Kc2 Qc3+ $11) 66... Qf4+ 67. Ke2 Qe5+ 68. Kd2 Qd4+ 69. Ke1 Qh4+ 70. Kd2 Qd4+ 71. Ke2 Qe4+ 72. Kf2 (72. Kd2 Bh6+ 73. Kc3 Qe1+ 74. Kb2 Qxd1 $11) 72... Bd4+ 73. Kg3 Be5+ 74. Kf2 Qd4+ 75. Ke2 Qe4+ 76. Kf1 (76. Kd2 Qd4+ 77. Ke2 Qe4+ 78. Kd2 Qd4+ 79. Ke2 $11) 76... Qf4+ 77. Ke2 Qe4+ 78. Kd2 Qd4+ 79. Kc2 Qc3+ 80. Kb1 Qa1+ 81. Kc2 Qc3+ 82. Kb1 Qa1+ 83. Kc2 Qc3+ $11) 62... Bxc3+ {[%emt 0:00:23]} 63. Kf1 {[%emt 0:00:01]} Qd2 {[%emt 0:00:19]} 64. Qe7+ {[%emt 0:00:13]} Kg8 {[%emt 0:00:15]} 65. Qe6+ {[%emt 0:00:58]} Kg7 {[%emt 0:00:07]} 66. Qg4+ {[%emt 0:00:07]} Kh8 {[%emt 0:00:08]} (66... Kf6 67. b6 Qd3+ 68. Be2 Qxd5) 67. Qf3 {[%emt 0:00:47]} Qe1+ {[%emt 0:00:11]} (67... Ba5 {was called for.} 68. Qf8+ Kh7 69. Qf7+ Kh6 70. Qf6+ Kh7) 68. Kg2 $18 {[%emt 0:00:01]} Be5 $2 {[%emt 0:00:37]} (68... Qd2+ $18 69. Be2 Qg5+ 70. Kh3 Qh6+ 71. Qh5 Qxh5+ 72. Bxh5 Kg7) 69. Qf8+ {[%emt 0:00:04]} Kh7 {[%emt 0:00:16]} 70. Bc2+ {[%emt 0:00:03]} 1-0

[Event "98th Caplin Hastings Masters 2024-25"]
[Site "Hastings"]
[Date "2025.01.02"]
[Round "8.14"]
[White "Lucas, Arthur"]
[Black "Kolka, David"]
[Result "1-0"]
[ECO "B12"]
[WhiteElo "2335"]
[BlackElo "2020"]
[Annotator "TA"]
[PlyCount "85"]
[EventDate "2024.12.23"]
[EventType "swiss"]
[EventCountry "ENG"]
[SourceTitle "playchess.com"]
[Source "ChessBase"]
[SourceQuality "1"]
[TimeControl "5400+30"]

{[%evp 9,85,-32,-29,-59,-66,-72,-11,-4,20,14,37,35,57,51,95,43,60,58,64,69,127,141,113,91,143,147,141,138,167,156,186,185,158,172,191,186,334,391,393,375,410,384,428,425,375,331,632,666,706,687,618,603,2024,1944,5320,5273,5277,4946,2325,1834,2386,2161,1741,1275,1644,1135,29964,29958,29967,5268,29972,29973,29979,29974,29983,29984,29984,29977]} 1. e4 {[%emt 0:07:33]} c6 {[%emt 0:00:04]} 2. d4 {[%emt 0:00:06]} d5 {[%emt 0:00:03]} 3. e5 {[%emt 0:00:21]} Bf5 {[%emt 0:00:57]} 4. h4 {[%emt 0:01:13]} h5 {[%emt 0:00:05]} 5. Bg5 {[%emt 0:00:12]} Qb6 {[%emt 0:00:50]} 6. Bd3 {[%emt 0:01:00]} Bxd3 {[%emt 0:07:39]} 7. Qxd3 {[%emt 0:00:05]} e6 {[%emt 0:00:51]} (7... Qxb2 $17 8. Qb3 Qxb3 (8... Qxa1 $2 9. Qxb7 Kd8 10. Rh3 $18) 9. axb3 e6) 8. Nd2 $11 {[%emt 0:05:14] Active counter play!} Ne7 {[%emt 0:07:17]} 9. Ne2 {[%emt 0:02:28]} Nf5 {[%emt 0:04:43][%cal Oc6c5]} 10. O-O {[%emt 0:02:23]} Nd7 {[%emt 0:17:39][%cal Oc6c5]} 11. c4 {[%emt 0:03:24]} Qa6 {[%emt 0:24:30]} 12. b3 {[%emt 0:01:35]} ({White should play} 12. Ng3 $16 dxc4 13. Nxc4) 12... Be7 {[%emt 0:06:55]} 13. Bxe7 {[%emt 0:03:13]} Nxe7 {[%emt 0:00:09]} 14. Nf3 {[%emt 0:03:21]} Nf5 {[%emt 0:02:57]} (14... c5 $14) 15. Ng3 $16 {[%emt 0:01:21]} g6 {[%emt 0:01:41]} 16. Rfc1 {[%emt 0:08:09]} Rd8 {[%emt 0:02:12]} (16... dxc4 $142 17. bxc4 Nxg3) 17. Nxf5 {[%emt 0:00:56]} gxf5 {[%emt 0:03:07]} 18. Qd2 {[%emt 0:07:33]} dxc4 {[%emt 0:12:07]} 19. bxc4 {[%emt 0:00:19]} Nc5 {[%emt 0:03:00] [#]} 20. Qg5 $1 {[%emt 0:08:30]} Ne4 {[%emt 0:00:29]} 21. Qg7 {[%emt 0:00:14]} Ke7 {[%emt 0:01:22][%cal Be8e7,Be7d7,Bd7c8,Bc8b8][%mdl 32] and ...Rdg8 should not be overlooked} 22. Ng5 {[%emt 0:00:32]} Nxg5 {[%emt 0:00:47]} (22... Rdf8 {was necessary.}) 23. Qf6+ $18 {[%emt 0:01:28]} (23. Qxg5+ Kd7 24. d5 cxd5 $16) ({Don't do} 23. hxg5 Rhg8 24. Qf6+ Ke8 $18) 23... Kd7 {[%emt 0:00:08]} 24. hxg5 {[%emt 0:00:05]} ({Less strong is} 24. Qxg5 Qa3 $14) 24... Rhf8 {[%emt 0:01:12] [#]} 25. d5 $1 {[%emt 0:02:31][%mdl 512]} c5 {[%emt 0:00:18]} (25... Kc7 26. d6+) 26. Rab1 {[%emt 0:08:00]} Kc8 {[%emt 0:01:05]} 27. Qe7 {[%emt 0:00:27]} b6 $2 {[%emt 0:00:43]} (27... Kb8 28. Qxc5 Rg8) 28. dxe6 {[%emt 0:03:03]} fxe6 {[%emt 0:00:05]} 29. Qxe6+ {[%emt 0:00:24]} Kb8 {[%emt 0:00:10]} 30. Rd1 {[%emt 0:01:17]} Qxa2 {[%emt 0:00:54]} 31. Qe7 {[%emt 0:10:01][%csl LRc5,LRd8]} Rxd1+ {[%emt 0:00:04]} 32. Rxd1 {[%emt 0:00:03][%mdl 4096] Endgame KQR-KQR} Rc8 {[%emt 0:00:07]} 33. Qd6+ {[%emt 0:05:11]} Rc7 {[%emt 0:01:04]} 34. Qd3 {[%emt 0:06:59]} Qa4 {[%emt 0:00:26]} 35. e6 {[%emt 0:00:39][%cal Oe6e7] And now e7! would win.} Kb7 {[%emt 0:01:33]} 36. Re1 {[%emt 0:01:58]} Re7 {[%emt 0:00:40]} 37. Qd5+ {[%emt 0:00:35]} Kc7 {[%emt 0:00:20]} 38. g6 {[%emt 0:01:11]} Qe8 {[%emt 0:00:32]} 39. Qxf5 {[%emt 0:01:25][%cal Of5f6] White threatens Qf6! and mate.} Qh8 {[%emt 0:00:08]} 40. Rd1 {[%emt 0:01:22]} Qg7 {[%emt 0:00:24]} 41. Qd5 {[%emt 0:01:51]} Qf8 {[%emt 0:00:07]} 42. Qd6+ {[%emt 0:00:23]} Kb7 {[%emt 0:00:34] [#]} 43. Qxe7+ $3 {[%emt 0:00:09][%mdl 512]} 1-0

[Event "98th Caplin Hastings Masters 2024-25"]
[Site "Hastings"]
[Date "2025.01.02"]
[Round "8.15"]
[White "Samarasinghe Jude, Ranga"]
[Black "Badacsonyi, Stanley"]
[Result "0-1"]
[ECO "C45"]
[WhiteElo "1944"]
[BlackElo "2266"]
[Annotator "NA RC"]
[PlyCount "60"]
[EventDate "2024.12.23"]
[EventType "swiss"]
[EventCountry "ENG"]
[SourceTitle "playchess.com"]
[Source "ChessBase"]
[SourceQuality "1"]
[TimeControl "5400+30"]

1. e4 {[%emt 0:01:28]} e5 {[%emt 0:00:08]} 2. Nf3 {[%emt 0:04:29]} Nc6 {[%emt 0:00:08]} 3. d4 {[%emt 0:00:06]} exd4 {[%emt 0:00:05]} 4. Nxd4 {[%emt 0:00:04]} Bc5 {[%emt 0:00:18]} 5. Nb3 {[%emt 0:04:02]} Bb6 {[%emt 0:00:13]} 6. c4 {[%emt 0:00:45]} d6 {[%emt 0:00:23]} 7. Nc3 {[%emt 0:00:21]} Nge7 {[%emt 0:02:27]} 8. Qh5 {[%emt 0:02:12]} O-O {[%emt 0:05:55]} 9. c5 {[%emt 0:15:33]} dxc5 {[%emt 0:01:04]} 10. Be3 {[%emt 0:00:34]} Nb4 {[%emt 0:04:47]} 11. Rc1 {[%emt 0:06:59]} Nec6 {[%emt 0:10:48]} 12. Bxc5 {[%emt 0:13:25]} Re8 {[%emt 0:02:37]} 13. Bxb6 {[%emt 0:02:51]} axb6 {[%emt 0:00:10]} 14. a3 {[%emt 0:00:15]} Nd3+ {[%emt 0:01:35]} 15. Bxd3 {[%emt 0:00:06]} Qxd3 {[%emt 0:00:05]} 16. Qd1 {[%emt 0:01:11]} Ne5 {[%emt 0:01:11]} 17. Rc2 {[%emt 0:04:34]} Qa6 {[%emt 0:07:51]} 18. Nc1 {[%emt 0:02:34]} Be6 {[%emt 0:00:41]} 19. f3 {[%emt 0:02:18]} Nc4 {[%emt 0:02:57]} 20. Qe2 {[%emt 0:01:48]} Qa5 {[%emt 0:00:36]} 21. Nb3 {[%emt 0:01:41]} Qe5 {[%emt 0:03:29]} 22. Nd2 {[%emt 0:00:47]} Nxb2 {[%emt 0:02:00]} 23. f4 {[%emt 0:01:55]} Qc5 {[%emt 0:01:21]} 24. e5 {[%emt 0:04:37]} Na4 {[%emt 0:01:22]} 25. Nde4 {[%emt 0:01:52]} Qd4 {[%emt 0:03:11]} 26. Nb5 {[%emt 0:01:00]} Qa1+ {[%emt 0:00:11]} 27. Qd1 {[%emt 0:12:32]} Qxd1+ {[%emt 0:00:06]} 28. Kxd1 {[%emt 0:00:02]} Bb3 {[%emt 0:00:07]} 29. Nxc7 {[%emt 0:00:10]} Bxc2+ {[%emt 0:00:05]} 30. Kxc2 {[%emt 0:01:00]} Rec8 {[%emt 0:00:04]} 0-1

[Event "98th Caplin Hastings Masters 2024-25"]
[Site "Hastings"]
[Date "2025.01.02"]
[Round "8.16"]
[White "Li, Jack"]
[Black "Zhang, Junyi"]
[Result "1/2-1/2"]
[ECO "B45"]
[WhiteElo "1717"]
[BlackElo "2070"]
[Annotator "NA RC"]
[PlyCount "62"]
[EventDate "2024.12.23"]
[EventType "swiss"]
[EventCountry "ENG"]
[SourceTitle "playchess.com"]
[Source "ChessBase"]
[SourceQuality "1"]
[TimeControl "5400+30"]

1. e4 {[%emt 0:00:02]} c5 {[%emt 0:00:08]} 2. Nf3 {[%emt 0:00:07]} e6 {[%emt 0:00:15]} 3. d4 {[%emt 0:00:05]} cxd4 {[%emt 0:00:02]} 4. Nxd4 {[%emt 0:00:03]} Nf6 {[%emt 0:00:05]} 5. Nc3 {[%emt 0:00:05]} Nc6 {[%emt 0:00:05]} 6. Ndb5 {[%emt 0:00:07]} Bb4 {[%emt 0:04:23]} 7. a3 {[%emt 0:00:15]} Bxc3+ {[%emt 0:00:23]} 8. Nxc3 {[%emt 0:00:04]} d5 {[%emt 0:00:04]} 9. exd5 {[%emt 0:00:03]} exd5 {[%emt 0:00:03]} 10. Bd3 {[%emt 0:00:03]} O-O {[%emt 0:00:06]} 11. O-O {[%emt 0:00:04]} Bg4 {[%emt 0:00:02]} 12. f3 {[%emt 0:00:19]} Bh5 {[%emt 0:00:04]} 13. Bg5 {[%emt 0:00:48]} Qb6+ {[%emt 0:00:38]} 14. Rf2 {[%emt 0:00:02]} Ne4 {[%emt 0:03:34]} 15. Nxe4 {[%emt 0:00:12]} dxe4 {[%emt 0:00:02]} 16. Bxe4 {[%emt 0:00:06]} Qxb2 {[%emt 0:00:06]} 17. Rb1 {[%emt 0:00:07]} Qxa3 {[%emt 0:00:07]} 18. Rxb7 {[%emt 0:00:04]} Qa6 {[%emt 0:00:33]} 19. Rd7 {[%emt 0:00:14]} Rac8 {[%emt 0:03:24]} 20. Qd5 {[%emt 0:11:33]} Bg6 {[%emt 0:24:59]} 21. h4 {[%emt 0:00:05]} Qa1+ {[%emt 0:01:43]} 22. Rf1 {[%emt 0:10:25]} Qe5 {[%emt 0:02:39]} 23. c4 {[%emt 0:01:00]} a5 {[%emt 0:10:31]} 24. Rb7 {[%emt 0:41:11]} a4 {[%emt 0:18:50]} 25. Rf2 {[%emt 0:07:43]} Qa1+ {[%emt 0:01:57]} 26. Rb1 {[%emt 0:03:53]} Qe5 {[%emt 0:10:46]} 27. Ra2 {[%emt 0:02:11]} Bxe4 {[%emt 0:00:44]} 28. fxe4 {[%emt 0:09:06]} h6 {[%emt 0:00:13]} 29. Qxe5 {[%emt 0:03:25]} Nxe5 {[%emt 0:00:12]} 30. Bf4 {[%emt 0:00:08]} Nxc4 {[%emt 0:01:42]} 31. Rxa4 {[%emt 0:00:09]} Rfe8 {[%emt 0:00:19]} 1/2-1/2